[Event "Titled Tuesday Blitz May 24 Early 2022"]
[White "Gulevich, Artem"]
[Black "Dahlgren, James Allen"]
[WhiteFideId "24119580"]
[BlackFideId "22256873"]
[WhiteElo "2218"]
[BlackElo "2063"]
[Result "1-0"]
[Round "02"]
[TimeControl "180+1"]
[Date "2022.05.25"]
[WhiteClock "0:00:58"]
[BlackClock "0:00:20"]

1. Nf3 {[%clk 0:03:00]}  e6 {[%clk 0:02:59]} 2. b3 {[%clk 0:02:59]}  c5 {[%clk 0:03:00]} 3. Bb2 {[%clk 0:02:59]}  d5 {[%clk 0:03:01]} 4. e3 {[%clk 0:03:00]}  Nf6 {[%clk 0:03:02]} 5. Be2 {[%clk 0:03:00]}  Nc6 {[%clk 0:03:03]} 6. O-O {[%clk 0:03:01]}  Be7 {[%clk 0:03:04]} 7. d4 {[%clk 0:03:01]}  O-O {[%clk 0:03:04]} 8. Nbd2 {[%clk 0:03:02]}  cxd4 {[%clk 0:03:05]} 9. Nxd4 {[%clk 0:03:02]}  a6 {[%clk 0:03:05]} 10. c4 {[%clk 0:03:02]}  Re8 {[%clk 0:03:04]} 11. Rc1 {[%clk 0:03:01]}  e5 {[%clk 0:03:03]} 12. Nxc6 {[%clk 0:02:58]}  bxc6 {[%clk 0:03:04]} 13. Bxe5 {[%clk 0:02:58]}  Ba3 {[%clk 0:03:02]} 14. Bxf6 {[%clk 0:02:59]}  Qxf6 {[%clk 0:03:02]} 15. Rc2 {[%clk 0:01:54]}  Bf5 {[%clk 0:02:58]} 16. e4 {[%clk 0:01:52]}  dxe4 {[%clk 0:02:53]} 17. Nb1 {[%clk 0:01:51]}  Bc5 {[%clk 0:02:37]} 18. Rc3 {[%clk 0:01:29]}  Rad8 {[%clk 0:02:30]} 19. Qc1 {[%clk 0:01:22]}  Bd4 {[%clk 0:02:02]} 20. Rg3 {[%clk 0:01:17]}  Bg6 {[%clk 0:01:08]} 21. Qg5 {[%clk 0:01:07]}  Qxg5 {[%clk 0:00:41]} 22. Rxg5 {[%clk 0:01:08]}  e3 {[%clk 0:00:39]} 23. f4 {[%clk 0:01:03]}  f6 {[%clk 0:00:30]} 24. Rg3 {[%clk 0:01:01]}  Kf7 {[%clk 0:00:22]} 25. f5 {[%clk 0:01:00]}  Be5 {[%clk 0:00:20]} 26. fxg6+ {[%clk 0:00:59]}  hxg6 {[%clk 0:00:20]} 27. Rgf3 {[%clk 0:00:58]} 1-0


[Site "https://www.chess.com"]

[Event "Titled Tuesday Blitz May 24 Early 2022"]
[White "Hamley, Ryan"]
[Black "Maksimovic, Bojan"]
[WhiteFideId "30959497"]
[BlackFideId "14408120"]
[WhiteElo "2549"]
[BlackElo "2448"]
[Result "0-1"]
[Round "02"]
[TimeControl "180+1"]
[Date "2022.05.25"]
[WhiteClock "0:00:01"]
[BlackClock "0:00:03"]

1. d4 {[%clk 0:02:54]}  d5 {[%clk 0:02:58]} 2. c4 {[%clk 0:02:54]}  e5 {[%clk 0:02:56]} 3. dxe5 {[%clk 0:02:50]}  d4 {[%clk 0:02:57]} 4. Nf3 {[%clk 0:02:49]}  Nc6 {[%clk 0:02:56]} 5. g3 {[%clk 0:02:49]}  Nge7 {[%clk 0:02:56]} 6. Bg2 {[%clk 0:02:50]}  Ng6 {[%clk 0:02:57]} 7. O-O {[%clk 0:02:50]}  Ngxe5 {[%clk 0:02:57]} 8. Nbd2 {[%clk 0:02:50]}  Be7 {[%clk 0:02:56]} 9. Nxe5 {[%clk 0:02:50]}  Nxe5 {[%clk 0:02:57]} 10. Nf3 {[%clk 0:02:50]}  Nxf3+ {[%clk 0:02:56]} 11. Bxf3 {[%clk 0:02:51]}  O-O {[%clk 0:02:56]} 12. Bf4 {[%clk 0:02:51]}  c6 {[%clk 0:02:50]} 13. h4 {[%clk 0:02:46]}  Bf6 {[%clk 0:02:48]} 14. Qc2 {[%clk 0:02:41]}  Re8 {[%clk 0:02:44]} 15. Rfd1 {[%clk 0:02:40]}  Qa5 {[%clk 0:02:43]} 16. a3 {[%clk 0:02:37]}  Bf5 {[%clk 0:02:39]} 17. Qd2 {[%clk 0:02:29]}  Qc5 {[%clk 0:02:11]} 18. Rac1 {[%clk 0:02:22]}  Rad8 {[%clk 0:02:09]} 19. b4 {[%clk 0:02:22]}  Qe7 {[%clk 0:02:09]} 20. b5 {[%clk 0:02:11]}  Be4 {[%clk 0:01:35]} 21. bxc6 {[%clk 0:01:58]}  bxc6 {[%clk 0:01:25]} 22. Bg4 {[%clk 0:01:38]}  c5 {[%clk 0:01:22]} 23. Qa5 {[%clk 0:01:34]}  Ba8 {[%clk 0:01:10]} 24. Rb1 {[%clk 0:01:15]}  Bxh4 {[%clk 0:00:50]} 25. Rb5 {[%clk 0:00:34]}  Bg5 {[%clk 0:00:40]} 26. Bc7 {[%clk 0:00:27]}  Rd7 {[%clk 0:00:26]} 27. Rxc5 {[%clk 0:00:20]}  Be3 {[%clk 0:00:26]} 28. Re5 {[%clk 0:00:14]}  Bxf2+ {[%clk 0:00:07]} 29. Kxf2 {[%clk 0:00:14]}  Qf6+ {[%clk 0:00:07]} 30. Bf3 {[%clk 0:00:11]}  Rde7 {[%clk 0:00:05]} 31. Rxe7 {[%clk 0:00:09]}  Qxe7 {[%clk 0:00:06]} 32. Bf4 {[%clk 0:00:09]}  h6 {[%clk 0:00:05]} 33. Qd2 {[%clk 0:00:07]}  g5 {[%clk 0:00:04]} 34. Qxd4 {[%clk 0:00:01]}  gxf4 {[%clk 0:00:04]} 35. Qxf4 {[%clk 0:00:01]}  Bxf3 {[%clk 0:00:03]} 0-1


[Site "https://www.chess.com"]

[Event "Titled Tuesday Blitz May 24 Early 2022"]
[White "Harris, Ian"]
[Black "Tan, Li Ting"]
[WhiteFideId "2020092"]
[BlackFideId "5704820"]
[WhiteElo "2433"]
[BlackElo "1928"]
[Result "1-0"]
[Round "02"]
[TimeControl "180+1"]
[Date "2022.05.25"]
[WhiteClock "0:00:44"]
[BlackClock "0:00:46"]

1. e4 {[%clk 0:03:00]}  e5 {[%clk 0:02:58]} 2. Nf3 {[%clk 0:02:59]}  Nc6 {[%clk 0:02:57]} 3. d4 {[%clk 0:02:59]}  exd4 {[%clk 0:02:56]} 4. Bc4 {[%clk 0:03:00]}  Nf6 {[%clk 0:02:56]} 5. e5 {[%clk 0:02:59]}  d5 {[%clk 0:02:56]} 6. Bb5 {[%clk 0:02:59]}  Ne4 {[%clk 0:02:56]} 7. Nxd4 {[%clk 0:02:58]}  Bd7 {[%clk 0:02:57]} 8. Bxc6 {[%clk 0:02:57]}  bxc6 {[%clk 0:02:57]} 9. O-O {[%clk 0:02:57]}  Bc5 {[%clk 0:02:56]} 10. Be3 {[%clk 0:02:53]}  Bb6 {[%clk 0:02:55]} 11. f3 {[%clk 0:02:53]}  Ng5 {[%clk 0:02:54]} 12. f4 {[%clk 0:02:53]}  Ne4 {[%clk 0:02:54]} 13. Nd2 {[%clk 0:02:53]}  Nxd2 {[%clk 0:02:52]} 14. Qxd2 {[%clk 0:02:54]}  O-O {[%clk 0:02:51]} 15. Nb3 {[%clk 0:02:53]}  f6 {[%clk 0:02:46]} 16. Qc3 {[%clk 0:02:52]}  fxe5 {[%clk 0:02:44]} 17. fxe5 {[%clk 0:02:52]}  Qe7 {[%clk 0:02:37]} 18. a4 {[%clk 0:02:45]}  Rae8 {[%clk 0:02:29]} 19. Rxf8+ {[%clk 0:02:39]}  Rxf8 {[%clk 0:02:23]} 20. Rf1 {[%clk 0:02:35]}  Rxf1+ {[%clk 0:02:19]} 21. Kxf1 {[%clk 0:02:36]}  Bxe3 {[%clk 0:02:13]} 22. Qxe3 {[%clk 0:02:34]}  Bf5 {[%clk 0:02:13]} 23. Nd4 {[%clk 0:02:11]}  Be4 {[%clk 0:02:13]} 24. e6 {[%clk 0:02:02]}  c5 {[%clk 0:02:12]} 25. Nf3 {[%clk 0:01:47]}  Qxe6 {[%clk 0:02:09]} 26. Qxc5 {[%clk 0:01:42]}  Bxc2 {[%clk 0:01:44]} 27. Qxc2 {[%clk 0:01:36]}  Qa6+ {[%clk 0:01:43]} 28. Qe2 {[%clk 0:01:33]}  Qxa4 {[%clk 0:01:41]} 29. Qe6+ {[%clk 0:01:32]}  Kf8 {[%clk 0:01:41]} 30. Qxd5 {[%clk 0:01:24]}  Qc2 {[%clk 0:01:29]} 31. Qd2 {[%clk 0:01:20]}  Qc4+ {[%clk 0:01:28]} 32. Kg1 {[%clk 0:01:19]}  h6 {[%clk 0:01:27]} 33. h3 {[%clk 0:01:19]}  Qc5+ {[%clk 0:01:26]} 34. Kh1 {[%clk 0:01:19]}  a5 {[%clk 0:01:25]} 35. Qd4 {[%clk 0:01:15]}  Qc1+ {[%clk 0:01:25]} 36. Kh2 {[%clk 0:01:11]}  a4 {[%clk 0:01:20]} 37. Ne5 {[%clk 0:01:05]}  Ke7 {[%clk 0:01:16]} 38. Qd7+ {[%clk 0:01:02]}  Kf6 {[%clk 0:01:15]} 39. Ng4+ {[%clk 0:01:02]}  Kg6 {[%clk 0:01:13]} 40. Qe6+ {[%clk 0:01:02]}  Kh7 {[%clk 0:01:13]} 41. Qf5+ {[%clk 0:01:02]}  Kg8 {[%clk 0:01:12]} 42. Qg6 {[%clk 0:00:53]}  Qf4+ {[%clk 0:01:06]} 43. Kh1 {[%clk 0:00:50]}  Qf1+ {[%clk 0:01:05]} 44. Kh2 {[%clk 0:00:50]}  Qf4+ {[%clk 0:01:06]} 45. g3 {[%clk 0:00:50]}  Qd2+ {[%clk 0:01:03]} 46. Kg1 {[%clk 0:00:50]}  Qe1+ {[%clk 0:01:00]} 47. Kg2 {[%clk 0:00:49]}  Qe2+ {[%clk 0:00:55]} 48. Nf2 {[%clk 0:00:49]}  Qxb2 {[%clk 0:00:55]} 49. Qe6+ {[%clk 0:00:46]}  Kh7 {[%clk 0:00:54]} 50. Qe4+ {[%clk 0:00:46]}  Kg8 {[%clk 0:00:53]} 51. Qe8+ {[%clk 0:00:46]}  Kh7 {[%clk 0:00:52]} 52. Qxa4 {[%clk 0:00:47]}  Qb7+ {[%clk 0:00:49]} 53. Qe4+ {[%clk 0:00:47]}  Qxe4+ {[%clk 0:00:50]} 54. Nxe4 {[%clk 0:00:48]}  Kg6 {[%clk 0:00:50]} 55. Kf3 {[%clk 0:00:49]}  Kf5 {[%clk 0:00:50]} 56. g4+ {[%clk 0:00:49]}  Ke5 {[%clk 0:00:51]} 57. Ke3 {[%clk 0:00:49]}  g5 {[%clk 0:00:50]} 58. Ng3 {[%clk 0:00:45]}  c5 {[%clk 0:00:49]} 59. Ne2 {[%clk 0:00:44]}  c4 {[%clk 0:00:48]} 60. Nc3 {[%clk 0:00:44]}  Kd6 {[%clk 0:00:46]} 61. Kd4 {[%clk 0:00:44]} 1-0


[Site "https://www.chess.com"]

[Event "Titled Tuesday Blitz May 24 Early 2022"]
[White "Hart, Braeden"]
[Black "Artemenko, Oleg"]
[WhiteFideId "30962587"]
[BlackFideId "14201798"]
[WhiteElo "2392"]
[BlackElo "2287"]
[Result "0-1"]
[Round "02"]
[TimeControl "180+1"]
[Date "2022.05.25"]
[WhiteClock "0:01:58"]
[BlackClock "0:02:17"]

1. e4 {[%clk 0:03:00]}  e6 {[%clk 0:02:54]} 2. Nf3 {[%clk 0:03:01]}  d5 {[%clk 0:02:47]} 3. e5 {[%clk 0:03:01]}  c5 {[%clk 0:02:47]} 4. b4 {[%clk 0:03:02]}  c4 {[%clk 0:02:47]} 5. d3 {[%clk 0:03:00]}  cxd3 {[%clk 0:02:46]} 6. Bxd3 {[%clk 0:03:00]}  Bxb4+ {[%clk 0:02:46]} 7. c3 {[%clk 0:03:00]}  Bc5 {[%clk 0:02:47]} 8. h4 {[%clk 0:03:00]}  Nc6 {[%clk 0:02:47]} 9. Bf4 {[%clk 0:03:00]}  Nge7 {[%clk 0:02:47]} 10. Ng5 {[%clk 0:03:00]}  h6 {[%clk 0:02:44]} 11. Nf3 {[%clk 0:02:50]}  Bd7 {[%clk 0:02:42]} 12. Nbd2 {[%clk 0:02:49]}  a6 {[%clk 0:02:40]} 13. Nb3 {[%clk 0:02:49]}  Ba7 {[%clk 0:02:40]} 14. Nbd4 {[%clk 0:02:50]}  Nxd4 {[%clk 0:02:38]} 15. cxd4 {[%clk 0:02:50]}  Bb5 {[%clk 0:02:38]} 16. O-O {[%clk 0:02:45]}  Bxd3 {[%clk 0:02:37]} 17. Qxd3 {[%clk 0:02:46]}  O-O {[%clk 0:02:37]} 18. Rab1 {[%clk 0:02:43]}  Qd7 {[%clk 0:02:37]} 19. Rb3 {[%clk 0:02:40]}  Rac8 {[%clk 0:02:36]} 20. Rfb1 {[%clk 0:02:40]}  Rc7 {[%clk 0:02:36]} 21. h5 {[%clk 0:02:38]}  Rfc8 {[%clk 0:02:36]} 22. Nh4 {[%clk 0:02:38]}  b5 {[%clk 0:02:33]} 23. Qg3 {[%clk 0:02:37]}  Kh8 {[%clk 0:02:32]} 24. Qg4 {[%clk 0:02:30]}  Bxd4 {[%clk 0:02:18]} 25. Bxh6 {[%clk 0:02:19]}  gxh6 {[%clk 0:02:19]} 26. Qxd4 {[%clk 0:02:18]}  Rc1+ {[%clk 0:02:20]} 27. Rxc1 {[%clk 0:02:12]}  Rxc1+ {[%clk 0:02:21]} 28. Kh2 {[%clk 0:02:13]}  Rc4 {[%clk 0:02:21]} 29. Qd2 {[%clk 0:02:09]}  Rxh4+ {[%clk 0:02:21]} 30. Kg1 {[%clk 0:02:08]}  Rxh5 {[%clk 0:02:20]} 31. Rc3 {[%clk 0:02:05]}  d4 {[%clk 0:02:19]} 32. Rh3 {[%clk 0:01:59]}  Rxh3 {[%clk 0:02:19]} 33. gxh3 {[%clk 0:02:00]}  Kh7 {[%clk 0:02:19]} 34. Qf4 {[%clk 0:01:59]}  Ng6 {[%clk 0:02:18]} 35. Qf6 {[%clk 0:01:59]}  Qc7 {[%clk 0:02:19]} 36. Kf1 {[%clk 0:01:58]}  Qc1+ {[%clk 0:02:17]} 37. Kg2 {[%clk 0:01:58]}  Qg5+ {[%clk 0:02:17]} 0-1


[Site "https://www.chess.com"]

[Event "Titled Tuesday Blitz May 24 Early 2022"]
[White "Hartikainen, Jarmo"]
[Black "Derraugh, Geordie"]
[WhiteFideId "503134"]
[BlackFideId "2603950"]
[WhiteElo "2123"]
[BlackElo "2116"]
[Result "0-1"]
[Round "02"]
[TimeControl "180+1"]
[Date "2022.05.25"]
[WhiteClock "0:00:41"]
[BlackClock "0:00:57"]

1. e4 {[%clk 0:03:00]}  c5 {[%clk 0:02:58]} 2. c3 {[%clk 0:03:00]}  d5 {[%clk 0:02:56]} 3. exd5 {[%clk 0:03:00]}  Qxd5 {[%clk 0:02:57]} 4. d4 {[%clk 0:03:01]}  Nf6 {[%clk 0:02:55]} 5. Nf3 {[%clk 0:02:59]}  g6 {[%clk 0:02:55]} 6. Na3 {[%clk 0:02:58]}  Bg7 {[%clk 0:02:53]} 7. Nb5 {[%clk 0:02:54]}  Qd8 {[%clk 0:02:52]} 8. Bf4 {[%clk 0:02:51]}  Na6 {[%clk 0:02:51]} 9. dxc5 {[%clk 0:02:49]}  Nd5 {[%clk 0:02:48]} 10. Bg3 {[%clk 0:02:40]}  Bg4 {[%clk 0:02:45]} 11. Be2 {[%clk 0:02:38]}  O-O {[%clk 0:02:45]} 12. O-O {[%clk 0:02:37]}  Nxc5 {[%clk 0:02:44]} 13. h3 {[%clk 0:02:23]}  Bc8 {[%clk 0:02:15]} 14. c4 {[%clk 0:02:13]}  a6 {[%clk 0:02:06]} 15. Nbd4 {[%clk 0:01:35]}  Nb6 {[%clk 0:01:56]} 16. Rc1 {[%clk 0:01:28]}  Re8 {[%clk 0:01:40]} 17. Be5 {[%clk 0:01:17]}  f6 {[%clk 0:01:32]} 18. Bh2 {[%clk 0:01:07]}  e5 {[%clk 0:01:31]} 19. Nb3 {[%clk 0:01:06]}  Qc7 {[%clk 0:01:04]} 20. a3 {[%clk 0:00:50]}  Rd8 {[%clk 0:00:58]} 21. Rc2 {[%clk 0:00:41]}  Rxd1 {[%clk 0:00:57]} 0-1


[Site "https://www.chess.com"]

[Event "Titled Tuesday Blitz May 24 Early 2022"]
[White "Hasangatin, Ramil"]
[Black "Jakubowska, Anna"]
[WhiteFideId "4122160"]
[BlackFideId "1121952"]
[WhiteElo "2399"]
[BlackElo "1878"]
[Result "0-1"]
[Round "02"]
[TimeControl "180+1"]
[Date "2022.05.25"]
[WhiteClock "0:00:39"]
[BlackClock "0:00:23"]

1. d4 {[%clk 0:03:00]}  d5 {[%clk 0:02:59]} 2. Nc3 {[%clk 0:03:00]}  f5 {[%clk 0:02:57]} 3. Bg5 {[%clk 0:02:59]}  g6 {[%clk 0:02:55]} 4. h4 {[%clk 0:02:58]}  Bg7 {[%clk 0:02:49]} 5. h5 {[%clk 0:02:58]}  h6 {[%clk 0:02:48]} 6. Bf4 {[%clk 0:02:40]}  g5 {[%clk 0:02:47]} 7. Be5 {[%clk 0:02:40]}  Nf6 {[%clk 0:02:46]} 8. e3 {[%clk 0:02:34]}  Nc6 {[%clk 0:02:45]} 9. Bb5 {[%clk 0:02:29]}  Bd7 {[%clk 0:02:44]} 10. Bxc6 {[%clk 0:02:29]}  Bxc6 {[%clk 0:02:43]} 11. Nf3 {[%clk 0:02:30]}  O-O {[%clk 0:02:23]} 12. Qd3 {[%clk 0:02:23]}  Ng4 {[%clk 0:02:17]} 13. Bxg7 {[%clk 0:02:19]}  Kxg7 {[%clk 0:02:14]} 14. Nh2 {[%clk 0:02:10]}  Nxh2 {[%clk 0:02:06]} 15. Rxh2 {[%clk 0:02:10]}  Qd6 {[%clk 0:02:06]} 16. Rh1 {[%clk 0:02:00]}  e5 {[%clk 0:02:00]} 17. dxe5 {[%clk 0:02:01]}  Qxe5 {[%clk 0:02:00]} 18. O-O-O {[%clk 0:02:01]}  Rad8 {[%clk 0:01:54]} 19. Qd4 {[%clk 0:02:01]}  Qxd4 {[%clk 0:01:34]} 20. Rxd4 {[%clk 0:02:00]}  Rd6 {[%clk 0:01:33]} 21. Rhd1 {[%clk 0:01:55]}  Be8 {[%clk 0:01:29]} 22. Rxd5 {[%clk 0:01:51]}  Rxd5 {[%clk 0:01:26]} 23. Rxd5 {[%clk 0:01:46]}  Bxh5 {[%clk 0:01:25]} 24. Nb5 {[%clk 0:01:46]}  c6 {[%clk 0:01:15]} 25. Rd7+ {[%clk 0:01:45]}  Rf7 {[%clk 0:01:15]} 26. Rxf7+ {[%clk 0:01:46]}  Bxf7 {[%clk 0:01:10]} 27. Nd6 {[%clk 0:01:46]}  Bd5 {[%clk 0:01:09]} 28. Nxf5+ {[%clk 0:01:40]}  Kf6 {[%clk 0:01:01]} 29. Nxh6 {[%clk 0:01:40]}  Bxg2 {[%clk 0:01:02]} 30. f4 {[%clk 0:01:29]}  gxf4 {[%clk 0:00:58]} 31. exf4 {[%clk 0:01:30]}  Bh3 {[%clk 0:00:57]} 32. Kd2 {[%clk 0:01:14]}  Kg7 {[%clk 0:00:55]} 33. Ke3 {[%clk 0:01:13]}  Kxh6 {[%clk 0:00:55]} 34. Kd4 {[%clk 0:01:14]}  b5 {[%clk 0:00:49]} 35. Ke5 {[%clk 0:01:11]}  Kg6 {[%clk 0:00:47]} 36. Kd6 {[%clk 0:01:10]}  Bg2 {[%clk 0:00:46]} 37. Ke5 {[%clk 0:01:09]}  Bd5 {[%clk 0:00:40]} 38. f5+ {[%clk 0:01:07]}  Kf7 {[%clk 0:00:39]} 39. b3 {[%clk 0:01:00]}  Ke7 {[%clk 0:00:37]} 40. f6+ {[%clk 0:01:00]}  Kf7 {[%clk 0:00:36]} 41. Kf5 {[%clk 0:00:59]}  a5 {[%clk 0:00:31]} 42. Ke5 {[%clk 0:00:58]}  Bf3 {[%clk 0:00:28]} 43. Kf5 {[%clk 0:00:53]}  a4 {[%clk 0:00:25]} 44. bxa4 {[%clk 0:00:48]}  bxa4 {[%clk 0:00:26]} 45. a3 {[%clk 0:00:49]}  Bd1 {[%clk 0:00:23]} 46. c3 {[%clk 0:00:48]}  Bb3 {[%clk 0:00:23]} 47. Ke5 {[%clk 0:00:48]}  Bd5 {[%clk 0:00:22]} 48. Kf5 {[%clk 0:00:48]}  Ke8 {[%clk 0:00:20]} 49. Kg6 {[%clk 0:00:42]}  Kd7 {[%clk 0:00:20]} 50. Kg7 {[%clk 0:00:43]}  Kd6 {[%clk 0:00:20]} 51. f7 {[%clk 0:00:39]}  Bxf7 {[%clk 0:00:19]} 52. Kxf7 {[%clk 0:00:40]}  Kc5 {[%clk 0:00:20]} 53. Ke6 {[%clk 0:00:41]}  Kc4 {[%clk 0:00:20]} 54. Kd6 {[%clk 0:00:42]}  Kxc3 {[%clk 0:00:21]} 55. Kxc6 {[%clk 0:00:37]}  Kb3 {[%clk 0:00:21]} 56. Kd5 {[%clk 0:00:38]}  Kxa3 {[%clk 0:00:21]} 57. Kd4 {[%clk 0:00:39]}  Kb2 {[%clk 0:00:22]} 58. Kd3 {[%clk 0:00:39]}  a3 {[%clk 0:00:23]} 0-1


[Site "https://www.chess.com"]

[Event "Titled Tuesday Blitz May 24 Early 2022"]
[White "Hua, Lefong"]
[Black "Shton, Roman"]
[WhiteFideId "2602253"]
[BlackFideId "14137461"]
[WhiteElo "2623"]
[BlackElo "2013"]
[Result "1-0"]
[Round "02"]
[TimeControl "180+1"]
[Date "2022.05.25"]
[WhiteClock "0:00:42"]
[BlackClock "0:00:16"]

1. d4 {[%clk 0:03:00]}  Nf6 {[%clk 0:02:57]} 2. c4 {[%clk 0:03:00]}  e6 {[%clk 0:02:57]} 3. Nc3 {[%clk 0:03:01]}  Bb4 {[%clk 0:02:57]} 4. f3 {[%clk 0:03:02]}  c5 {[%clk 0:02:56]} 5. a3 {[%clk 0:03:00]}  Bxc3+ {[%clk 0:02:55]} 6. bxc3 {[%clk 0:03:01]}  d5 {[%clk 0:02:52]} 7. cxd5 {[%clk 0:03:00]}  Nxd5 {[%clk 0:02:51]} 8. dxc5 {[%clk 0:02:57]}  Qa5 {[%clk 0:02:50]} 9. e4 {[%clk 0:02:57]}  Ne7 {[%clk 0:02:18]} 10. Be3 {[%clk 0:02:57]}  Qxc3+ {[%clk 0:02:17]} 11. Kf2 {[%clk 0:02:55]}  O-O {[%clk 0:02:17]} 12. Ne2 {[%clk 0:02:49]}  Qa5 {[%clk 0:02:15]} 13. Ng3 {[%clk 0:02:44]}  Nbc6 {[%clk 0:02:15]} 14. Be2 {[%clk 0:02:42]}  f5 {[%clk 0:02:14]} 15. exf5 {[%clk 0:02:41]}  exf5 {[%clk 0:02:15]} 16. Qb3+ {[%clk 0:02:35]}  Kh8 {[%clk 0:02:13]} 17. f4 {[%clk 0:02:32]}  Rf6 {[%clk 0:01:46]} 18. Rhd1 {[%clk 0:02:23]}  Qc7 {[%clk 0:01:46]} 19. Rab1 {[%clk 0:02:11]}  Rb8 {[%clk 0:01:44]} 20. Bc1 {[%clk 0:01:55]}  Be6 {[%clk 0:01:43]} 21. Qf3 {[%clk 0:01:55]}  Rd8 {[%clk 0:01:23]} 22. Bb2 {[%clk 0:01:52]}  Rf7 {[%clk 0:01:17]} 23. Rxd8+ {[%clk 0:01:46]}  Nxd8 {[%clk 0:01:16]} 24. Rd1 {[%clk 0:01:35]}  Qxc5+ {[%clk 0:01:12]} 25. Bd4 {[%clk 0:01:36]}  Qc7 {[%clk 0:00:55]} 26. Nh5 {[%clk 0:01:34]}  Ndc6 {[%clk 0:00:44]} 27. Ba1 {[%clk 0:01:29]}  Qb6+ {[%clk 0:00:42]} 28. Kf1 {[%clk 0:01:28]}  Ng6 {[%clk 0:00:39]} 29. Qc3 {[%clk 0:01:11]}  Qa5 {[%clk 0:00:32]} 30. Qxa5 {[%clk 0:01:03]}  Nxa5 {[%clk 0:00:33]} 31. Rd8+ {[%clk 0:01:00]}  Nf8 {[%clk 0:00:34]} 32. Nxg7 {[%clk 0:00:55]}  Nb3 {[%clk 0:00:29]} 33. Be5 {[%clk 0:00:52]}  Rxg7 {[%clk 0:00:17]} 34. Rxf8+ {[%clk 0:00:51]}  Bg8 {[%clk 0:00:18]} 35. Rxg8+ {[%clk 0:00:41]}  Kxg8 {[%clk 0:00:18]} 36. Bc4+ {[%clk 0:00:42]}  Kf8 {[%clk 0:00:16]} 37. Bxg7+ {[%clk 0:00:42]}  Kxg7 {[%clk 0:00:16]} 38. Bxb3 {[%clk 0:00:42]} 1-0


[Site "https://www.chess.com"]

[Event "Titled Tuesday Blitz May 24 Early 2022"]
[White "Ianov, Viktor"]
[Black "Shevtchenko, Olesya"]
[WhiteFideId "14102730"]
[BlackFideId "24131890"]
[WhiteElo "2152"]
[BlackElo "2003"]
[Result "1-0"]
[Round "02"]
[TimeControl "180+1"]
[Date "2022.05.25"]
[WhiteClock "0:02:26"]
[BlackClock "0:00:32"]

1. Nf3 {[%clk 0:03:00]}  d5 {[%clk 0:02:59]} 2. g3 {[%clk 0:02:59]}  Nf6 {[%clk 0:02:54]} 3. Bg2 {[%clk 0:02:58]}  e6 {[%clk 0:02:54]} 4. O-O {[%clk 0:02:58]}  Be7 {[%clk 0:02:52]} 5. c4 {[%clk 0:02:58]}  O-O {[%clk 0:02:50]} 6. b3 {[%clk 0:02:58]}  c5 {[%clk 0:02:47]} 7. Bb2 {[%clk 0:02:57]}  d4 {[%clk 0:02:47]} 8. e3 {[%clk 0:02:57]}  Nc6 {[%clk 0:02:46]} 9. exd4 {[%clk 0:02:57]}  cxd4 {[%clk 0:02:47]} 10. d3 {[%clk 0:02:57]}  e5 {[%clk 0:02:47]} 11. Re1 {[%clk 0:02:57]}  Qc7 {[%clk 0:02:34]} 12. Ba3 {[%clk 0:02:57]}  Re8 {[%clk 0:02:21]} 13. Bxe7 {[%clk 0:02:56]}  Rxe7 {[%clk 0:02:17]} 14. Na3 {[%clk 0:02:56]}  a6 {[%clk 0:02:15]} 15. Nc2 {[%clk 0:02:55]}  a5 {[%clk 0:02:12]} 16. a3 {[%clk 0:02:54]}  Bg4 {[%clk 0:01:54]} 17. b4 {[%clk 0:02:53]}  axb4 {[%clk 0:01:54]} 18. axb4 {[%clk 0:02:52]}  Rxa1 {[%clk 0:01:37]} 19. Qxa1 {[%clk 0:02:50]}  h6 {[%clk 0:01:33]} 20. b5 {[%clk 0:02:50]}  Nd8 {[%clk 0:01:29]} 21. Qa3 {[%clk 0:02:47]}  Bxf3 {[%clk 0:01:10]} 22. Bxf3 {[%clk 0:02:45]}  Ne6 {[%clk 0:01:10]} 23. h4 {[%clk 0:02:40]}  Nc5 {[%clk 0:00:58]} 24. Nb4 {[%clk 0:02:39]}  e4 {[%clk 0:00:53]} 25. dxe4 {[%clk 0:02:38]}  Ncxe4 {[%clk 0:00:49]} 26. Bxe4 {[%clk 0:02:36]}  Rxe4 {[%clk 0:00:48]} 27. Rxe4 {[%clk 0:02:34]}  Nxe4 {[%clk 0:00:49]} 28. Qd3 {[%clk 0:02:32]}  Nd6 {[%clk 0:00:34]} 29. Qxd4 {[%clk 0:02:29]}  Nxc4 {[%clk 0:00:32]} 30. Nd5 {[%clk 0:02:26]} 1-0


[Site "https://www.chess.com"]

[Event "Titled Tuesday Blitz May 24 Early 2022"]
[White "Itkis, Boris"]
[Black "Kozak, Antoni"]
[WhiteFideId "1209167"]
[BlackFideId "21832030"]
[WhiteElo "2207"]
[BlackElo "2322"]
[Result "0-1"]
[Round "02"]
[TimeControl "180+1"]
[Date "2022.05.25"]
[WhiteClock "0:00:25"]
[BlackClock "0:00:21"]

1. b3 {[%clk 0:02:59]}  d5 {[%clk 0:02:57]} 2. Nf3 {[%clk 0:02:58]}  Nf6 {[%clk 0:02:56]} 3. Bb2 {[%clk 0:02:59]}  Bf5 {[%clk 0:02:56]} 4. e3 {[%clk 0:02:59]}  e6 {[%clk 0:02:55]} 5. d4 {[%clk 0:03:00]}  Be7 {[%clk 0:02:43]} 6. Nbd2 {[%clk 0:02:59]}  O-O {[%clk 0:02:40]} 7. Bd3 {[%clk 0:02:59]}  Bg6 {[%clk 0:02:23]} 8. O-O {[%clk 0:02:57]}  c5 {[%clk 0:02:22]} 9. Bxg6 {[%clk 0:02:49]}  hxg6 {[%clk 0:02:22]} 10. c4 {[%clk 0:02:50]}  Nc6 {[%clk 0:02:22]} 11. Qe2 {[%clk 0:02:46]}  dxc4 {[%clk 0:01:59]} 12. Nxc4 {[%clk 0:02:43]}  Qd5 {[%clk 0:01:58]} 13. Rfd1 {[%clk 0:02:38]}  Qh5 {[%clk 0:01:51]} 14. Rac1 {[%clk 0:02:09]}  Rfd8 {[%clk 0:01:51]} 15. Qf1 {[%clk 0:02:01]}  g5 {[%clk 0:01:41]} 16. Nce5 {[%clk 0:01:54]}  Nb4 {[%clk 0:01:26]} 17. a3 {[%clk 0:01:45]}  Nbd5 {[%clk 0:01:25]} 18. dxc5 {[%clk 0:01:43]}  g4 {[%clk 0:01:21]} 19. Nd2 {[%clk 0:01:34]}  a5 {[%clk 0:00:59]} 20. Qb5 {[%clk 0:00:56]}  Rab8 {[%clk 0:00:34]} 21. b4 {[%clk 0:00:47]}  axb4 {[%clk 0:00:34]} 22. axb4 {[%clk 0:00:48]}  g6 {[%clk 0:00:30]} 23. Ndc4 {[%clk 0:00:46]}  Kg7 {[%clk 0:00:29]} 24. Nd2 {[%clk 0:00:33]}  g3 {[%clk 0:00:23]} 25. Nf1 {[%clk 0:00:29]}  gxf2+ {[%clk 0:00:21]} 26. Kxf2 {[%clk 0:00:25]}  Ne4+ {[%clk 0:00:21]} 27. Kg1 {[%clk 0:00:25]}  Bf6 {[%clk 0:00:21]} 0-1


[Site "https://www.chess.com"]